Cogmind - Beta 14 @@@ ROGUE MODE // 2024.08.10 @ 12:28:52 Player: lsend Result: Destroyed by S-10 Pest with Light Assault Rifle Performance ------------- Evolutions (0) 0 Regions Visited (2) 400 Robots Destroyed (2) 10 Value Destroyed (68) 68 Prototype IDs (0) 0 Alien Tech Used (0) 0 Bonus (0) 0 TOTAL SCORE: 478 Bonus ------- None Cogmind --------- Core Integrity 0/250 Matter 280/300 Energy 100/100 System Corruption 1% Temperature Cool (0) Movement Rolling (110) Location -10/Subcaves Parts ------- > --- POWER (1) -------- (None) > --- PROPULSION (2) --- Subdweller Monowheel Subdweller Monowheel > --- UTILITY (2) ------ Hardened Light Armor Plating > --- WEAPON (2) ------- Subdweller Beam Cannon > --- INVENTORY (5) ---- Flight Unit Small Storage Unit Mini Grenade Launcher Peak State ------------ > --- POWER ------------ (None) > --- PROPULSION ------- Subdweller Monowheel Subdweller Monowheel > --- UTILITY ---------- Hardened Light Armor Plating > --- WEAPON ----------- Subdweller Beam Cannon > --- INVENTORY -------- Flight Unit Small Storage Unit Mini Grenade Launcher [Rating: 8] Favorites ----------- Power None Propulsion Light Treads Treads Light Treads Wheel Subdweller Monowheel Utility Propulsion Shielding Protection Propulsion Shielding Weapon Subdweller Beam Cannon Energy Cannon Subdweller Beam Cannon Special Weapon Mining Laser Build | -11 -10 -10 ------- Run | Yrd Mat Sub Slots Evolved . | . . . Power . | . . . Propulsion . | . . . Utility . | . . . Weapon . | . . . Parts Attached 8 | 2 2 4 Power . | . . . Engine . | . . . Core . | . . . Reactor . | . . . Propulsion 4 | 2 . 2 Treads 2 | 2 . . Leg . | . . . Wheel 2 | . . 2 Hover . | . . . Flight . | . . . Utility 2 | . 1 1 Device . | . . . Storage . | . . . Processor . | . . . Hackware . | . . . Protection 2 | . 1 1 Artifact . | . . . Weapon 2 | . 1 1 Energy Gun . | . . . Energy Cannon 1 | . . 1 Ballistic Gun . | . . . Ballistic Cannon . | . . . Launcher . | . . . Special Weapon 1 | . 1 . Impact Weapon . | . . . Slashing Weapon . | . . . Piercing Weapon . | . . . Special Melee Weapon . | . . . Unidentified Prototypes . | . . . Parts Lost 4 | . 2 2 Power . | . . . Propulsion 2 | . . 2 Utility 1 | . 1 . Weapon 1 | . 1 . Highest Loss Streak 1 | . 1 1 To Critical Strikes . | . . . Average Slot Usage (%) 31 | . 33 30 Treads 14 | . 28 6 Wheel 8 | . . 13 Protection 2 | . 3 2 Energy Cannon 4 | . . 7 Peak Build Rating 8 | 2 4 8 Average Rating 3 | 1 2 3 On Entrance 1 | . 2 2 Naked Turns . | . . . Heaviest Build 13 | . 2 13 Greatest Support 40 | 3 40 40 Greatest Overweight (x) 2 | . . 2 Average Overweight (x) . | . . . Largest Inventory Capacity 5 | 5 5 5 Average Capacity 5 | 5 5 5 Most Carried 4 | 1 4 4 Average Carried 3 | . 3 3 Final Capacity 5 | 5 5 5 Final Carried 4 | 1 4 3 Class Distribution -------------------- 100% | Mutant Dominant Class ---------------- Mutant | -10/Materials Mutant | -10/Subcaves Resources | -11 -10 -10 ----------- Run | Yrd Mat Sub Matter Collected 264 | 220 4 40 Remotely . | . . . Salvage Created 22 | . 22 . Parts 2 | . 2 . Haulers Intercepted . | . . . Recyclers Shooed . | . . . Parts Field Recycled . | . . . Retrieved Matter . | . . . Parts Self-Destructed 13 | . . 13 Prevented . | . . . Kills | -11 -10 -10 ------- Run | Yrd Mat Sub Combat Hostiles Destroyed 2 | . 2 . Melee 2 | . 2 . Classes Destroyed 1 | . 1 . Grunt 2 | . 2 . Best Kill Streak 2 | . 2 . Combat Bots Only 2 | . 2 . Max Kills in Single Turn 1 | . 1 . Gunslinging . | . . . Exploded . | . . . Melee 1 | . 1 . Uniques/NPCs Destroyed . | . . . Combat | -11 -10 -10 -------- Run | Yrd Mat Sub Hostile Shots Fired 72 | . 52 20 Missed 23 | . 13 10 Damage Taken 691 | . 463 228 Core 256 | . 165 91 Absorbed by Shields . | . . . Redirected to Shielding 51 | . 51 . Core Remaining (%) 100 | 100 . . Volleys Fired 3 | . . 3 Largest 1 | . . 1 Hottest 80 | . . 80 Shots Fired 3 | . . 3 Gun . | . . . Cannon 3 | . . 3 Launcher . | . . . Special . | . . . Kinetic . | . . . Thermal 3 | . . 3 Explosive . | . . . Electromagnetic . | . . . Robot Hit Streak . | . . . Robot Miss Streak . | . . . Penetration Max . | . . . Secondary Targets . | . . . Shots Hit Robots . | . . . Core Hits . | . . . Critical Kills . | . . . Critical Parts Destroyed . | . . . Critical Strikes . | . . . Melee Attacks . | . . . Impact . | . . . Slashing . | . . . Piercing . | . . . Sneak Attacks . | . . . Combat Hostiles . | . . . Follow-up Attacks . | . . . Damage Inflicted 5 | . 5 . Guns . | . . . Cannons . | . . . Explosions . | . . . Melee . | . . . Ramming 5 | . 5 . Kinetic . | . . . Thermal . | . . . Explosive . | . . . Electromagnetic . | . . . Impact . | . . . Slashing . | . . . Piercing . | . . . Highest Corruption 1 | . 1 1 Average Corruption 1 | . 1 1 Corruption Purged . | . . . Corruption Blocked . | . . . Effects 13 | . 4 9 Message Errors 1 | . . 1 Matter Fused 4 | . 1 3 Energy Discharges 2 | . . 2 Data Loss (minor) 2 | . 2 . Data Loss (major) 3 | . 1 2 Alerts 1 | . . 1 Overload Shots . | . . . Overflow Damage . | . . . Projectiles . | . . . Explosions . | . . . Melee . | . . . Knockbacks . | . . . Impact . | . . . Kinetic . | . . . Secondary . | . . . Self-Inflicted Damage . | . . . Shots . | . . . Rammed 7 | . 7 . Targets Rammed 9 | . 9 . Kicked . | . . . Crushed 2 | . 2 . Highest Temperature . | . . . Average Temperature . | . . . Received Heat Transfer 264 | . 258 6 Siege Activations . | . . . Robots Corrupted . | . . . Combat Hostiles . | . . . Parts Fried . | . . . Impact Corruptions . | . . . Robots Melted . | . . . Combat Hostiles . | . . . Parts Melted . | . . . Heat Transferred . | . . . Parts Sabotaged . | . . . Parts Stolen . | . . . Parts Stripped . | . . . Power Chain Reactions . | . . . Alert | -11 -10 -10 ------- Run | Yrd Mat Sub Peak Influence 265 | . 265 . Initial . | . . . Average 123 | . 126 . Maximum Alert Level 1 | . 1 . Low Security (%) 74 | 100 73 . Level 1 25 | . 26 . Level 2 . | . . . Level 3 . | . . . Level 4 . | . . . Level 5 . | . . . High Security . | . . . Max Security . | . . . Squads Dispatched 1 | . 1 . Investigation 1 | . 1 . Extermination . | . . . Reinforcement . | . . . Assault . | . . . Garrison . | . . . Intercept . | . . . Searches Triggered . | . . . Construction Impeded . | . . . Haulers Reinforced . | . . . Active Scanning Responses . | . . . Cargo Convoy Interrupts . | . . . Stealth | -11 -10 -10 --------- Run | Yrd Mat Sub Distress Signals . | . . . Communications Jammed . | . . . Distress Signals . | . . . Times Spotted 23 | . 15 8 Peak Tracking Total 8 | . 8 3 Tactical Retreats 4 | . 3 1 Traps | -11 -10 -10 ------- Run | Yrd Mat Sub Traps Triggered 5 | . 2 3 Indirectly . | . . . Trap Hack Attempts . | . . . Triggered . | . . . Disarmed . | . . . Reprogrammed . | . . . Reused . | . . . Traps Extracted . | . . . Installed . | . . . Triggered . | . . . Machines | -11 -10 -10 ---------- Run | Yrd Mat Sub Machines Disabled . | . . . Max in Single Turn . | . . . Machines Repaired . | . . . Machines Dismantled . | . . . Machines Sabotaged . | . . . Overloaded Fab Kills . | . . . Hacking | -11 -10 -10 --------- Run | Yrd Mat Sub Machines Accessed 6 | . 6 . Terminals 4 | . 4 . Fabricators . | . . . Repair Stations . | . . . Recycling Units 2 | . 2 . Scanalyzers . | . . . Garrison Access . | . . . Total Hacks 11 | . 11 . Successful 4 | . 4 . Failed 7 | . 7 . Catastrophic 3 | . 3 . Database Lockouts . | . . . Manual . | . . . Terminals 7 | . 7 . Fabricators . | . . . Repair Stations . | . . . Recycling Units 4 | . 4 . Scanalyzers . | . . . Garrison Access . | . . . Terminal Hacks 3 | . 3 . Locate Traps 1 | . 1 . Zone Layout 2 | . 2 . Fabricator Hacks . | . . . Repair Station Hacks . | . . . Recycling Unit Hacks 1 | . 1 . Retrieve Components 1 | . 1 . Scanalyzer . | . . . Garrison Access Hacks . | . . . Unauthorized Hacks . | . . . Terminals . | . . . Fabricators . | . . . Repair Stations . | . . . Recycling Units . | . . . Scanalyzers . | . . . Garrison Access . | . . . Data Cores Recovered . | . . . Used . | . . . Hacking Detections 6 | . 6 . Full Trace Events . | . . . Feedback Events . | . . . Feedback Blocked . | . . . Robot Schematics Acquired . | . . . Robots Built . | . . . Authchips . | . . . Time . | . . . Total Robot Build Rating . | . . . Part Schematics Acquired . | . . . Parts Built . | . . . Authchips . | . . . Time . | . . . Total Part Build Rating . | . . . Parts Repaired . | . . . Time . | . . . Parts Recycled . | . . . Recycled Matter . | . . . Retrieved Matter . | . . . Retrieved Components 1 | . 1 . Parts Scanalyzed . | . . . Part Schematics Acquired . | . . . Parts Damaged . | . . . Bothacking | -11 -10 -10 ------------ Run | Yrd Mat Sub Used RIF Installer . | . . . Robots Hacked . | . . . Non-combat . | . . . Combat . | . . . Robot Hacks Applied . | . . . Relay Couplers Released . | . . . Fabnet Peak Effective % . | . . . Robots Rewired . | . . . Allies Hacked . | . . . Hacks Repelled . | . . . Allies | -11 -10 -10 -------- Run | Yrd Mat Sub Total Allies . | . . . Largest Group . | . . . Highest-Rated Group . | . . . Highest-Rated Ally . | . . . Total Orders . | . . . Ally Attacks . | . . . Total Damage . | . . . Kills . | . . . Allies Corrupted . | . . . Allies Melted . | . . . Intel | -11 -10 -10 ------- Run | Yrd Mat Sub Robot Analysis Total . | . . . Derelict Logs Recovered 1 | . . 1 Drone Launches . | . . . Drone Recoveries . | . . . Exploration | -11 -10 -10 ------------- Run | Yrd Mat Sub Turns Passed 1782 | 15 685 1082 Spaces Moved 1153 | 22 393 738 Core 716 | 22 373 321 Treads 293 | . 20 273 Legs . | . . . Wheels 144 | . . 144 Hover . | . . . Flight . | . . . Fastest Speed 50 | 50 50 50 Average Speed 110 | 50 55 142 Slowest Speed 160 | 50 160 160 Overloaded Moves . | . . . Propulsion Burnouts . | . . . Robots Hopped . | . . . Cave-ins Triggered . | . . . Exploration Rate (%) 45 | 3 83 51 Regions Visited 2 Branch Regions 1 Pre-discovered Areas 1 | . . 1 Known Exits Taken . | . . . Unknown Exits Taken 2 | 1 1 . Scrap Searched . | . . . Spaces Dug . | . . . Terrain Destroyed . | . . . Melee . | . . . Projectile . | . . . AOE . | . . . Terrain Rammed . | . . . Walls Destroyed . | . . . Machines Disabled . | . . . Actions | -11 -10 -10 --------- Run | Yrd Mat Sub Total 1639 | 24 853 762 Wait 464 | . 447 17 Move 1151 | 21 392 738 Hop . | . . . Pick Up 4 | 1 3 . Fast Attach 7 | 2 2 3 Attach 1 | . . 1 Detach . | . . . Swap . | . . . Drop . | . . . Fire 3 | . . 3 Melee . | . . . Ram . | . . . Kick . | . . . Crush 9 | . 9 . Escape Stasis . | . . . Rewire . | . . . Trap . | . . . Miscellaneous . | . . . Route ------- -11/Scrapyard -10/Materials (discovered 6 exits: [*Mat x3] / [*Min x2] / [*Sub]) -10/Subcaves (discovered 1 exit: [*Mat]) History --------- Turn | Location | Event 5 | -11/Scrapyard | Discovered new exit (range 15) 16 | -11/Scrapyard | Entered Materials 44 | -10/Materials | Discovered new exit (range 13) 85 | -10/Materials | Discovered new exit (range 6) 104 | -10/Materials | Discovered new exit (range 16) 152 | -10/Materials | Discovered new exit (range 11) 201 | -10/Materials | Discovered new exit (range 16) 265 | -10/Materials | Core integrity fell below 50% 310 | -10/Materials | Build established: Mutant 668 | -10/Materials | Discovered new exit (range 6) 701 | -10/Materials | Entered Subcaves 777 | -10/Subcaves | Core integrity fell below 20% 833 | -10/Subcaves | Learned 8 Materials zone layouts 1364 | -10/Subcaves | A swath of the cavern ceiling suddenly collapsed 1523 | -10/Subcaves | Learned location of Zion (-6) 1523 | -10/Subcaves | Met a Zionite searching for "candidates" 1679 | -10/Subcaves | Shifting Twisted Machinery released Sub. Monowheel 1725 | -10/Subcaves | Discovered new exit (range 5) 1783 | -10/Subcaves | Destroyed by S-10 Pest with Light Assault Rifle Last Messages --------------- 01172_ Acquired Sub. Beam Cannon. 01240_ System corrupted: Matter fused (-7). 01258_ System corrupted: IFF burst signal emitted. 01269_ Acquired 14 matter. 01364_ Ion Engine crushed. 01364_ II-HDT(h) crushed by falling debris. 01364_ II-HDT(h) system corrupted by crushing effect. 01364_ II-HDT(h) destroyed. 01364_ 21 Matter crushed. A swath of the cavern ceiling suddenly collapses. 01368_ Acquired 3 matter. 01465_ QY,6E2XDJNI,GUC=&FPFCXGNVV:FP6O BWQC3GQ 01523_ D3-QDQ(z): "Hey you! It's really dangerous down here, I feel that you could die at any moment. For your health and safety might I suggest a trip to Zion?" World map updated: -6/Zion. 01536_ System corrupted: Substantial component data lost. Sub. Monowheel falls loose from the Twisted Machinery. 01690_ Acquired Sub. Monowheel. 01725_ EXIT=FOUND Map ----- +----------------------------------------------------+ | ???????????????????????##???????????????????????? | | ?????????????????????## #???????????????????????? | | ????????????????????? ????????????????????????? | | ????????????????????# ##???????????????????????? | | ??????????????????## ????????????????????????? | | ??????????????????# ?????????????????????????? | | ???????????????#### ##????????????????????????? | | ???????????????# ## # #?????????????????? | | ???????????????# ????????????????????? | | ???????????????# #?????????????????????????? | | ???????????????# ##????? ???????????????????? | | ??????????????### #?????? ???????????????????? | | ??????????????# ##????? ???????????????????? | | ??????????????# #?????? #???????????????????? | | ??????????????## ##?????? ##??????????????????? | | ???????????????### ##?????? #??????????????????? | | ????????????????# #????? ???????????????????? | | ????????????????# #????? ##??????????????????? | | ????????????????## ##????? #??????????????????? | | ????????????????# ###?### ##??????????????????? | | ????????????????# ### #??????????????????? | | ????????????????# #???????????????????? | | ????????????????## s ##???????????????????? | | ?????????????????# ##s ##????????????????????? | | ?????????????????# # ##????????????????????? | | ?????????????????## @ #????????????????????? | | ??????????????????## ##????????????????????? | | ??????????????????# #?????????????????????? | | ??????????????????## # ##?????????????????????? | | ??????????????????## ## #??????????????????????? | | ???????????????#### #??????????????????????? | | ???????????????# ##?????????????????????? | | ???????????????# #?????????????????????? | | ???????????????# #### #???????####??????????? | | ???????????????# ##?## #####?#### ##?##??????? | | ???????????????# #### # ### # ## ##?????? | | ???????????????# < ### #?????? | | ???????????????# ##?# #?????? | | ???????????????# #??# ## #??????? | | ???????????????#### #??########## #??????? | | ??????????????????###?????????## #??????? | | ?????????????????????????????## ##??????? | | ????????????????????????????## #???????? | | ???????????????###?????????## ##???????? | | ???????????????# ##????????# ####????????? | | ???????????????# #?######?## #???????????? | | ???????????????# #?# #??## ##??????????? | | ??????????????## ##?# #???## #??????????? | | ??????????????# #### #?##??# ##??????????? | | ??????????????# ## #?## #?# ##??????????? | +----------------------------------------------------+ Best States ------------- Heat Dissipation 25 Energy Generation 5 Energy Capacity 100 Matter Stores 300 Matter Capacity 300 Sight Range 16 Terrain Scan Density 10 Armor Coverage 150 Propulsion Shielding 33 Evasion (%) 50 Recoil Reduction 2 Item Schematics ----------------- None Robot Schematics ------------------ None Fabricated ------------ Nothing Alien Tech Used ----------------- None Achievements -------------- None Challenges ------------ None Game ------ Seed MatterThrowingInterrupter Manual? 0 Play Time 00:15:54 Cumulative 670.6 hours Start 2024.08.10 @ 12:18:30 End 2024.08.10 @ 12:28:52 Sessions 1 Manual Loads 0 Difficulty Rogue Special Mode None Game No. 520 Rogue 520 Adventurer 0 Explorer 0 Win Type - Total 172 Types 97/9/49/6/3/2/4/1/1 Lore% 71 Gallery% 85 Achievement% 84 Wizard Run 0 Options --------- Layout 0 ASCII 1 Keyboard 0 Movement Vi Keybinds 0 Fullscreen 1 Font 24/Smallcaps Map View 76x50 Zoom Use 0% Tactical HUD 1 Map Filters NONE Filters NONE Steam X RUN: 5e724981-af1d-48dd-b0b5-881a7247eb1a